bitfinex/quotes_ETHUSD_20241013
["timestamp","ask_amount","ask_price","bid_price","bid_amount"]
[1728779004460,1.26757247,2483.7,2483.3,0.04770539]
[1728779004626,1.26757247,2483.7,2483.2,6.17828362]
[1728779004825,11.09496247,2483.8,2483.4,0.04761966]
[1728779005052,11.09496247,2483.8,2483.4,1.31028476]
[1728779005053,6.26757247,2483.8,2483.4,1.31028476]
[1728779005251,1.26757247,2483.8,2483.6,5.33668476]
[1728779005454,1.26757247,2484.0,2483.8,4.80127]
[1728779005668,1.26757247,2484.1,2483.9,5.33617476]
[1728779005882,1.26757247,2484.1,2483.9,5.38336782]
[1728779006197,1.26757247,2484.1,2484.0,1.31028476]
[1728779006343,1.26757247,2484.2,2484.0,1.31028476]
[1728779006686,2.06877247,2484.3,2484.0,1.35734859]
[1728779007747,1.26757247,2484.3,2484.0,1.35734859]
[1728779007968,1.26757247,2484.3,2484.1,2.08558476]
[1728779008176,1.26757247,2484.4,2484.3,4.02527]
[1728779008347,5.0,2484.9,2484.4,5.35041]
[1728779008549,5.0,2484.9,2484.5,1.31028476]
[1728779008785,5.0,2484.9,2484.5,1.35685888]
[1728779010094,10.3027187,2484.9,2484.5,0.04657412]
[1728779010272,11.57072314,2484.9,2484.5,0.04657412]
[1728779010589,7.54641314,2484.9,2484.5,0.04657412]
[1728779011097,11.57078314,2484.9,2484.5,0.04657412]
[1728779011387,10.3027787,2484.9,2484.5,0.04657412]
[1728779012346,5.0,2484.9,2484.5,0.04657412]
[1728779013388,4.02457,2484.8,2484.5,0.04657412]
[1728779013566,4.02457,2484.8,2484.1,2.08558476]
[1728779013567,4.78408,2484.6,2484.1,2.08558476]
[1728779013985,4.78408,2484.6,2484.2,0.04683112]
[1728779015164,4.78408,2484.6,2484.2,1.35711588]
[1728779015594,0.7592,2484.6,2484.2,1.35711588]
[1728779017371,0.7592,2484.6,2484.2,0.04683112]
[1728779017893,4.02505,2484.5,2484.2,0.04683112]
[1728779018094,5.53697448,2484.5,2483.9,5.33610476]
[1728779018285,8.05012,2484.5,2484.3,0.04661088]
[1728779018482,4.02511,2484.4,2483.9,5.33610476]
[1728779019006,4.02505,2484.5,2483.9,5.33610476]
[1728779019210,4.02505,2484.5,2484.0,1.31028476]
[1728779020473,4.02513,2484.4,2484.0,1.31028476]
[1728779020669,4.02505,2484.5,2484.0,1.92017524]
[1728779021002,4.02505,2484.5,2484.0,5.94592524]
[1728779021173,5.7592,2484.6,2484.0,5.94592524]
[1728779021174,5.7592,2484.6,2484.2,1.31028476]
[1728779021377,5.7592,2484.6,2484.0,4.63564048]
[1728779021378,5.0,2484.9,2484.5,5.33521476]
[1728779022009,0.7841,2485.1,2484.7,2.10398476]
[1728779022181,9.02391,2485.2,2484.7,2.10398476]
[1728779022376,9.02391,2485.2,2484.7,0.7937]
[1728779022622,5.0,2485.2,2484.8,4.02446]
[1728779025224,9.02383,2485.2,2484.7,0.7937]
[1728779025422,9.02383,2485.2,2484.7,1.37707585]
[1728779026286,9.02383,2485.2,2484.7,5.40168585]
[1728779026591,5.0,2485.2,2484.7,5.40168585]
[1728779028108,9.02393,2485.2,2484.7,1.37707585]
[1728779029711,13.04786,2485.2,2484.7,1.37707585]
[1728779029933,9.02393,2485.2,2484.7,1.37707585]
[1728779030117,9.02393,2485.2,2484.8,0.94264359]
[1728779031339,9.02393,2485.2,2484.9,0.04584778]
[1728779032034,13.04788,2485.2,2484.9,0.04584778]
[1728779032633,9.02393,2485.2,2484.9,0.04584778]
[1728779032825,13.04786,2485.2,2484.9,0.04584778]
[1728779034720,9.02393,2485.2,2484.9,0.04584778]
[1728779035741,9.02393,2485.2,2484.7,0.7937]
[1728779035945,9.02393,2485.2,2485.0,0.04575425]
[1728779036263,4.0241,2485.1,2484.5,0.7937]
[1728779036444,4.02433,2484.9,2484.5,0.55]
[1728779036619,8.04873,2484.9,2484.5,0.55]
[1728779036811,4.02433,2484.9,2484.5,0.5480657]
[1728779037025,8.04873,2484.9,2484.5,0.5480657]
[1728779037242,4.02464,2484.7,2484.3,8.0937]
[1728779037406,4.02447,2484.8,2484.3,8.0937]
[1728779040655,4.02447,2484.8,2484.3,0.7937]
[1728779042348,4.02447,2484.8,2484.3,4.81896]
[1728779042564,4.02447,2484.8,2484.4,1.30911583]
[1728779042925,9.02433,2484.9,2484.5,1.30911583]
[1728779043565,13.04873,2484.9,2484.5,1.30911583]
[1728779044859,9.02433,2484.9,2484.5,1.30911583]
[1728779045062,13.04874,2484.9,2484.5,1.30911583]
[1728779045767,9.02433,2484.9,2484.4,1.30911583]
[1728779046302,13.04873,2484.9,2484.5,0.04486573]
[1728779046467,13.04873,2484.9,2484.5,1.35398156]
[1728779046639,13.04873,2484.9,2484.5,0.04486573]
[1728779047273,5.0,2484.9,2484.6,1.30911583]
[1728779047451,4.02404,2485.1,2484.7,2.12411026]
[1728779047771,6.26800444,2485.2,2484.9,1.30911583]
[1728779047772,5.0,2485.2,2484.9,1.30911583]
[1728779047978,5.0,2485.2,2484.8,1.30911583]
[1728779048174,5.0,2485.2,2485.0,0.04443753]
[1728779048462,5.0,2485.2,2485.1,0.04435192]
[1728779048783,5.0,2485.2,2484.9,1.30911583]
[1728779048947,5.0,2485.2,2485.1,0.04437762]
[1728779049129,5.0,2485.2,2485.0,0.04446324]
[1728779049331,5.0,2485.2,2485.1,0.04437762]
[1728779049566,0.8181,2485.3,2485.1,0.04437762]
[1728779049869,0.8181,2485.3,2485.2,0.04429201]
[1728779050095,0.8181,2485.3,2484.9,1.30911583]
[1728779050295,0.8181,2485.3,2485.0,0.04446324]
[1728779050583,5.29150444,2485.4,2485.0,0.04446324]
[1728779050584,1.26800444,2485.4,2485.0,2.12387907]
[1728779050788,1.26800444,2485.4,2485.1,1.30911583]
[1728779050998,1.26800444,2485.5,2485.2,1.30911583]
[1728779051308,6.26800444,2485.6,2485.2,0.04425247]
[1728779052293,6.26800444,2485.6,2485.2,1.3533683]
[1728779052592,6.26800444,2485.6,2485.2,0.04425247]
[1728779052791,10.29118444,2485.6,2485.2,0.04425247]
[1728779053496,6.26800444,2485.6,2485.2,0.04425247]
[1728779053676,6.26800444,2485.6,2485.2,0.66637951]
[1728779053932,6.26800444,2485.6,2485.2,1.97549534]
[1728779054382,6.26800444,2485.6,2485.2,0.66637951]
[1728779054580,10.29119444,2485.6,2485.2,0.66637951]
[1728779055783,10.29119444,2485.6,2485.2,1.97549534]
[1728779055784,6.26800444,2485.6,2485.2,1.97549534]
[1728779055983,5.0,2485.6,2485.4,0.7703]
[1728779056406,5.0,2485.6,2485.5,0.0438731]
[1728779056630,5.0,2485.6,2485.4,2.07941583]
[1728779056780,5.0,2485.6,2485.5,1.35298893]
[1728779056979,1.266166,2485.8,2485.5,0.0438731]
[1728779057212,1.266166,2485.8,2485.4,2.07941583]
[1728779057426,1.266166,2485.8,2485.4,2.74971507]
[1728779057652,13.86367,2485.9,2485.5,0.0438731]
[1728779057922,4.02288,2485.8,2485.5,0.0438731]
[1728779058489,5.28872217,2485.8,2485.5,0.0438731]
[1728779059284,5.28872217,2485.8,2485.4,0.7703]
[1728779059513,5.28872217,2485.8,2485.5,0.0438731]
[1728779059724,4.02288,2485.8,2485.5,0.0438731]
[1728779060085,5.28872217,2485.8,2485.5,0.0438731]
[1728779060285,4.02288,2485.8,2485.5,0.0438731]
[1728779060689,5.28872217,2485.8,2485.5,0.0438731]
[1728779061286,4.02288,2485.8,2485.5,0.0438731]
[1728779062075,1.26584217,2485.8,2485.5,0.0438731]
[1728779062273,4.02317,2485.6,2485.5,0.0438731]
[1728779062602,11.11848583,2485.6,2485.5,0.0438731]
[1728779062763,12.75922263,2485.6,2485.5,0.0438731]
[1728779062963,4.02365,2485.3,2485.0,0.791]
[1728779063306,4.02365,2485.3,2484.9,9.21950041]
[1728779063307,4.02392,2485.2,2484.9,0.61038458]
[1728779063595,4.02392,2485.2,2484.9,1.30911583]
[1728779063804,4.02392,2485.2,2484.8,2.10011583]
[1728779064499,4.02392,2485.2,2484.8,0.791]
[1728779064700,4.80985,2485.3,2484.8,0.791]
[1728779064864,8.83366,2485.3,2484.8,2.10011583]
[1728779066005,9.80985,2485.3,2484.8,2.10011583]
[1728779066169,4.024,2485.1,2484.7,1.30911583]
[1728779066373,4.024,2485.1,2484.7,2.65161141]
[1728779066697,9.80991,2485.3,2484.8,1.30911583]
[1728779068274,13.83368,2485.3,2484.8,1.30911583]
[1728779068473,4.02384,2485.2,2484.8,1.30911583]
[1728779068888,4.02382,2485.2,2484.8,1.30911583]
[1728779070202,11.07575217,2485.3,2484.8,1.30911583]
[1728779070362,9.80991,2485.3,2484.8,2.05583697]
[1728779075693,13.83371,2485.3,2484.8,2.05583697]
[1728779075864,13.83371,2485.3,2484.7,6.67615141]
[1728779075865,4.02387,2485.2,2484.7,6.67615141]
[1728779076070,4.02387,2485.2,2484.8,1.30911583]
[1728779076271,4.02387,2485.2,2484.9,0.05069306]
[1728779079173,11.07575217,2485.3,2484.9,0.05069306]
[1728779079174,5.0,2485.0,2484.9,0.05069306]
[1728779079368,9.02414,2485.0,2484.9,0.05069306]
[1728779079567,9.02414,2485.0,2484.6,2.10011583]
[1728779079568,5.0,2485.0,2484.6,2.10011583]
[1728779079798,5.0,2485.0,2484.9,0.0469031]
[1728779079993,5.0,2485.0,2484.6,2.10011583]
[1728779080203,5.0,2485.0,2484.9,0.0469031]
[1728779080415,5.0,2485.0,2484.6,2.10011583]
[1728779080612,5.0,2485.0,2484.9,0.0469031]
[1728779080800,5.0,2485.0,2484.6,2.10011583]
[1728779081295,5.0,2485.0,2484.7,0.04710072]
[1728779082018,9.02417,2485.0,2484.7,0.04710072]
[1728779085100,5.0,2485.0,2484.7,0.04710072]
[1728779086294,5.0,2485.0,2484.7,0.06364983]
[1728779089532,9.02424,2485.0,2484.7,0.06364983]
[1728779089740,0.7826,2484.9,2484.7,0.06364983]
[1728779090034,0.7826,2484.9,2484.8,0.0573323]
[1728779090537,0.7826,2484.9,2484.5,5.33395583]
[1728779091030,0.7826,2484.9,2484.6,0.05763668]
[1728779091031,4.02456,2484.8,2484.6,0.05763668]
[1728779091237,5.005244,2484.8,2484.6,0.05763668]
[1728779091436,5.005244,2484.8,2484.4,0.7623]
[1728779091733,4.02456,2484.8,2484.4,0.7623]
[1728779092107,4.02456,2484.8,2484.5,0.05776516]
[1728779094090,4.80705,2484.9,2484.5,1.36688099]
[1728779097834,4.80705,2484.9,2484.5,0.05776516]
[1728779099994,6.26584217,2485.0,2484.7,0.7623]
[1728779100200,5.0,2485.0,2484.7,0.7623]
[1728779100433,5.0,2485.0,2484.8,0.05737976]
[1728779102338,1.26584217,2485.1,2484.8,5.94876691]
[1728779102548,1.68778956,2485.2,2484.9,1.30911583]
[1728779102549,1.26584217,2485.2,2484.9,1.30911583]
[1728779102702,1.26584217,2485.2,2484.9,5.33340583]
[1728779102905,6.26584217,2485.3,2485.0,0.05719107]
[1728779103526,1.26584217,2485.2,2485.0,0.05719107]
[1728779104104,6.26584217,2485.3,2485.0,0.05719107]
[1728779104941,1.26584217,2485.3,2485.1,0.758]
[1728779105251,10.71115956,2485.5,2485.2,0.05692533]
[1728779105252,1.26584217,2485.4,2485.2,0.05692533]
[1728779107643,10.71115956,2485.5,2485.2,0.05692533]
[1728779107644,5.28921217,2485.5,2485.2,0.05692533]
[1728779107805,5.28921217,2485.5,2485.1,2.06711583]
[1728779108150,1.26584217,2485.5,2485.4,1.30911583]
[1728779108356,1.26584217,2485.5,2485.3,2.06711583]
[1728779108503,1.26584217,2485.5,2485.4,0.06296503]
[1728779108712,6.26584217,2485.6,2485.4,0.06296503]
[1728779109613,5.0,2485.6,2485.4,1.37208086]
[1728779109807,1.26584217,2485.7,2485.5,1.30911583]
[1728779110037,1.26584217,2485.8,2485.6,0.758]
[1728779110351,1.26584217,2485.8,2485.6,0.06255123]
[1728779110552,1.26584217,2485.8,2485.5,1.30911583]
[1728779110722,5.28868217,2485.9,2485.6,0.06254794]
[1728779111642,5.28868217,2485.9,2485.5,1.30911583]
[1728779111853,5.28868217,2485.9,2485.7,0.06216805]
[1728779112155,5.28868217,2485.9,2485.6,0.06231067]
[1728779112315,5.28868217,2485.9,2485.5,1.30911583]
[1728779112637,5.28868217,2485.9,2485.6,0.06231067]
[1728779113248,4.02284,2485.9,2485.5,1.30911583]
[1728779113435,4.02284,2485.9,2485.7,0.06216805]
[1728779113643,4.02284,2485.9,2485.6,0.06231067]
[1728779113850,4.02284,2485.9,2485.8,0.06202543]
[1728779114085,5.42718876,2485.9,2485.7,0.06216805]
[1728779114348,5.42718876,2485.9,2485.8,0.06202543]
[1728779114554,1.40434876,2485.9,2485.8,0.06202543]
[1728779114740,4.02269,2485.9,2485.8,0.06202543]
[1728779115164,4.02289,2485.8,2485.4,0.758]
[1728779115459,4.83099,2485.8,2485.4,0.758]
[1728779115664,4.02289,2485.8,2485.4,0.758]
[1728779115811,4.02289,2485.8,2485.4,2.06711583]
[1728779116913,4.02301,2485.7,2485.4,2.06711583]
[1728779117427,4.02301,2485.7,2485.4,0.758]
[1728779118543,4.02289,2485.8,2485.4,0.758]
[1728779118945,4.02289,2485.8,2485.4,2.06711583]
[1728779120792,9.83072,2486.0,2485.4,2.06711583]
[1728779120943,9.83072,2486.0,2485.5,1.30911583]
[1728779121282,9.83072,2486.0,2485.6,0.06231067]
[1728779122240,9.83072,2486.0,2485.4,6.29730741]
[1728779122441,9.83072,2486.0,2485.7,0.06216805]
[1728779122684,9.83072,2486.0,2485.4,6.29730741]
[1728779122861,9.83072,2486.0,2485.8,0.06202543]
[1728779123069,9.83072,2486.0,2485.4,6.29730741]
[1728779123265,9.83071,2486.0,2485.9,0.06188283]
[1728779123477,13.85335,2486.0,2485.4,6.29730741]
[1728779123647,9.83071,2486.0,2485.9,0.06188283]
[1728779123847,13.85335,2486.0,2485.4,6.29730741]
[1728779124185,9.83071,2486.0,2485.5,1.03208274]
[1728779124485,13.85333,2486.0,2485.6,0.06231067]
[1728779126192,13.85334,2486.0,2485.6,0.06231067]
[1728779126354,9.83071,2486.0,2485.6,0.06231067]
[1728779128295,13.85338,2486.0,2485.6,0.06231067]
[1728779128491,9.83071,2486.0,2485.6,0.06231067]
[1728779129107,9.83071,2486.0,2485.4,0.758]
[1728779129289,9.83071,2486.0,2485.7,0.06209888]
[1728779129593,4.02288,2485.8,2485.4,0.758]
[1728779130152,5.0,2485.7,2485.2,0.7567]
[1728779130417,9.0231,2485.7,2485.2,0.7567]
[1728779131985,9.0231,2485.7,2485.2,2.06581583]
[1728779133260,9.0231,2485.7,2485.2,2.67479141]
[1728779134312,5.0,2485.7,2485.3,1.30911583]
[1728779136180,5.0,2485.7,2485.4,0.06252679]
[1728779138811,9.02302,2485.7,2485.4,0.06252679]
[1728779139572,5.0,2485.7,2485.4,0.06252679]
[1728779139983,5.0,2485.7,2485.2,6.69852141]
[1728779140189,5.0,2485.7,2485.3,0.06263979]
[1728779140979,5.0,2485.7,2485.3,1.37175562]
[1728779141180,11.09654217,2486.0,2485.5,1.30911583]
[1728779141380,11.09654217,2486.0,2485.6,2.15192767]
[1728779141381,9.8307,2486.0,2485.6,2.15192767]
[1728779141626,9.8307,2486.0,2485.6,0.84281184]
[1728779142623,11.09654217,2486.0,2485.6,0.84281184]
[1728779142820,10.28844217,2486.0,2485.6,0.84281184]
[1728779143127,5.0,2486.0,2485.6,6.17509767]
[1728779143283,5.71006956,2486.2,2485.9,1.30911583]
[1728779143284,1.26584217,2486.2,2485.9,1.30911583]
[1728779143484,10.28797217,2486.3,2485.8,1.30911583]
[1728779143725,10.28797217,2486.3,2486.0,0.06154587]
[1728779143900,10.28797217,2486.3,2485.8,1.30911583]
[1728779143901,10.28797217,2486.3,2485.9,0.06168846]
[1728779144079,9.02213,2486.3,2485.8,1.30911583]
[1728779144284,10.28797217,2486.3,2486.0,0.06154587]
[1728779144602,10.28797217,2486.3,2486.1,0.06140329]
[1728779144815,10.28797217,2486.3,2485.8,1.30911583]
[1728779145011,10.28797217,2486.3,2485.9,0.06168846]
[1728779145829,10.28797217,2486.3,2485.7,5.33201583]
[1728779146002,10.28797217,2486.3,2486.0,0.06154587]
[1728779146322,10.28797217,2486.3,2485.7,5.33201583]
[1728779146521,10.28797217,2486.3,2486.1,0.06140329]
[1728779146727,10.28797217,2486.3,2485.7,5.33201583]
[1728779146925,10.28797217,2486.3,2486.2,0.06126072]
[1728779147127,12.09482593,2486.3,2485.7,5.33201583]
[1728779147428,10.28797217,2486.3,2485.7,5.33201583]
[1728779147724,10.28797217,2486.3,2485.8,0.06183107]
[1728779148114,10.28797217,2486.3,2485.7,5.33201583]
[1728779148309,10.28797217,2486.3,2485.9,0.06168846]
[1728779148612,10.28797217,2486.3,2485.7,5.33201583]
[1728779148813,10.28797217,2486.3,2485.8,1.3709469]
[1728779149698,6.26584217,2486.3,2485.8,1.3709469]
[1728779149905,4.02223,2486.2,2485.8,1.3709469]
[1728779150226,5.28807217,2486.2,2485.8,1.3709469]
[1728779151881,6.26584217,2486.3,2486.0,1.30911583]
[1728779152034,10.28792217,2486.3,2485.9,1.30911583]
[1728779152189,5.0,2486.3,2486.1,0.06122219]
[1728779154228,6.26584217,2486.3,2486.1,0.06122219]
[1728779155760,6.26584217,2486.3,2485.9,1.04303415]
[1728779155941,6.26584217,2486.3,2485.9,5.06568415]
[1728779156139,6.26584217,2486.3,2485.9,6.37479998]
[1728779156346,6.26584217,2486.3,2486.0,0.77582477]
[1728779159766,5.0,2486.3,2486.0,0.77582477]
[1728779160768,6.26584217,2486.3,2486.0,0.77582477]
[1728779161768,5.0,2486.3,2486.0,0.77582477]
[1728779167470,4.0223,2486.2,2486.0,0.06136477]
[1728779167635,0.8208,2486.1,2486.0,0.06136477]
[1728779167834,7.08664217,2486.3,2485.8,2.12051583]
[1728779168075,7.08664217,2486.3,2485.9,0.06146125]
[1728779168373,11.10869217,2486.3,2485.9,0.06146125]
[1728779168544,11.10869217,2486.3,2485.9,1.37057708]
[1728779168751,11.10869217,2486.3,2485.9,0.06146125]
[1728779169132,9.84285,2486.3,2485.9,0.06146125]
[1728779171848,4.02222,2486.2,2485.9,0.06146125]
[1728779172778,4.02222,2486.2,2485.8,2.12051583]
[1728779172935,4.02222,2486.2,2485.9,0.06146125]
[1728779173338,5.8208,2486.3,2485.9,0.06146125]
[1728779173533,5.8208,2486.3,2485.8,7.16000841]
[1728779173849,9.84286,2486.3,2485.9,0.06146125]
[1728779177573,5.8208,2486.3,2485.9,0.06146125]
[1728779183308,9.84284,2486.3,2485.9,0.06146125]
[1728779184666,5.8208,2486.3,2485.9,0.06146125]
[1728779184980,4.0222,2486.2,2485.9,0.06146125]
[1728779189203,5.28804217,2486.2,2485.9,0.06146125]
[1728779190309,1.26584217,2486.2,2485.9,0.06146125]
[1728779191171,1.26584217,2486.2,2485.9,4.08413125]
[1728779193120,7.08664217,2486.3,2485.9,4.08413125]
[1728779198534,7.08664217,2486.3,2485.9,0.06146125]
[1728779198742,1.26584217,2486.2,2485.9,0.06146125]
[1728779199102,5.8208,2486.3,2485.9,0.06146125]
[1728779199103,7.08664217,2486.3,2485.9,0.06146125]
[1728779199308,5.0,2486.0,2485.9,0.06146125]
[1728779199626,5.0,2486.0,2485.7,0.84278029]
[1728779199830,5.0,2486.0,2485.9,0.06140527]
[1728779200028,5.0,2486.0,2485.8,0.06154788]
[1728779200228,5.0,2486.0,2485.7,1.36150008]
[1728779200423,5.0,2486.0,2485.8,2.23633671]
[1728779200625,5.0,2486.0,2485.8,0.06154788]
[1728779200842,5.0,2486.0,2485.7,2.20428037]
[1728779201018,5.0,2486.0,2485.9,0.06140527]
[1728779201223,5.0,2486.0,2485.8,0.06154788]
[1728779201421,5.0,2486.0,2485.7,3.5133962]
[1728779201625,5.0,2486.0,2485.9,0.06140527]
[1728779201857,5.0,2486.0,2485.8,0.06154788]
[1728779202060,5.0,2486.0,2485.7,3.5133962]
[1728779202365,5.0,2486.0,2485.9,0.06140527]
[1728779202532,5.0,2486.0,2485.8,0.06154788]
[1728779202732,5.0,2486.0,2485.9,0.06140527]
[1728779203150,5.0,2486.0,2485.7,3.5133962]
[1728779203356,5.0,2486.0,2485.9,0.06142503]
[1728779203520,5.0,2486.0,2485.9,0.69878076]
[1728779203725,5.0,2486.0,2485.9,0.76020579]
[1728779204138,5.0,2486.0,2485.9,0.76019203]
[1728779206843,5.0,2486.0,2485.9,1.18808106]
[1728779207043,5.0,2486.0,2485.9,0.76019203]
[1728779208128,5.0,2486.0,2485.9,0.06142503]
[1728779208828,5.0,2486.0,2485.9,0.06142175]
[1728779209043,5.0,2486.0,2485.6,6.95444612]
[1728779209368,5.0,2486.0,2485.7,2.23741306]
[1728779209541,5.0,2486.0,2485.8,1.12704826]
[1728779209746,5.0,2486.0,2485.7,0.06169709]
[1728779209946,5.0,2486.0,2485.9,0.06141187]
[1728779210256,5.0,2486.0,2485.9,0.06141846]
[1728779210477,5.0,2486.0,2485.7,1.04870954]
[1728779210778,0.8096,2485.9,2485.8,0.06156106]
[1728779211078,6.26584217,2486.0,2485.6,2.08851583]
[1728779211373,6.26584217,2486.0,2485.7,1.12714778]
[1728779211576,6.26584217,2486.0,2485.6,3.15360547]
[1728779211727,6.26584217,2486.0,2485.8,0.06156106]
[1728779211933,5.0,2486.0,2485.8,5.33193583]
[1728779212182,5.0,2486.0,2485.9,0.06141846]
[1728779213172,5.0,2486.0,2485.7,1.35055211]
[1728779213369,5.0,2486.0,2485.9,0.06141846]
[1728779213533,5.0,2486.0,2485.8,0.06156106]
[1728779213733,6.26584217,2486.0,2485.9,0.06141846]
[1728779213970,5.0,2486.0,2485.9,0.06141846]
[1728779214137,5.0,2486.0,2485.6,11.98071945]
[1728779214138,5.0,2486.0,2485.6,11.13793916]
[1728779214346,5.0,2486.0,2485.9,0.06141846]
[1728779214673,6.26584217,2486.0,2485.9,0.06141846]
[1728779214881,6.26584217,2486.0,2485.7,0.12599081]
[1728779215174,5.0,2486.0,2485.8,0.06156106]
[1728779215383,6.26584217,2486.0,2485.8,0.06156106]
[1728779215559,5.0,2486.0,2485.6,11.13793916]
[1728779215760,6.26584217,2486.0,2485.9,0.06141846]
[1728779215967,7.07544217,2486.0,2485.6,6.11157583]
[1728779216136,7.07544217,2486.0,2485.9,0.06141846]
[1728779216495,5.8096,2486.0,2485.9,0.06141846]
[1728779216778,7.07544217,2486.0,2485.6,6.11157583]
[1728779216976,5.8096,2486.0,2485.9,0.06141846]
[1728779217165,7.07544217,2486.0,2485.6,10.13465583]
[1728779217481,5.8096,2486.0,2485.7,1.12685524]
[1728779217776,7.07544217,2486.0,2485.8,0.06157751]
[1728779218154,7.07544217,2486.0,2485.6,6.11157583]
[1728779218348,7.07544217,2486.0,2485.9,0.0614349]
[1728779218880,7.07544217,2486.0,2485.6,11.67915565]
[1728779219036,7.07544217,2486.0,2485.7,0.06172012]
[1728779219750,5.8096,2486.0,2485.7,0.06172012]
[1728779220378,7.07544217,2486.0,2485.7,0.06172012]
[1728779220673,5.8096,2486.0,2485.7,0.06172012]
[1728779220978,7.07544217,2486.0,2485.7,0.06172012]
[1728779221151,5.8096,2486.0,2485.7,0.06172012]
[1728779221355,7.07544217,2486.0,2485.7,0.06172012]
[1728779221663,5.8096,2486.0,2485.7,0.06172012]
[1728779221866,7.07544217,2486.0,2485.7,0.06172012]
[1728779222382,5.8096,2486.0,2485.7,0.06172012]
[1728779222544,7.07544217,2486.0,2485.7,0.06172012]
[1728779222960,5.8096,2486.0,2485.7,0.06172012]
[1728779223181,7.07544217,2486.0,2485.7,0.06172012]
[1728779223540,5.8096,2486.0,2485.7,0.06172012]
[1728779223868,7.07544217,2486.0,2485.7,0.06172012]
[1728779224188,5.8096,2486.0,2485.7,0.06172012]
[1728779224542,5.8096,2486.0,2485.7,4.08467012]
[1728779225052,5.0,2486.0,2485.7,4.08467012]
[1728779228477,5.0,2486.0,2485.7,5.39378595]
[1728779228639,5.0,2486.0,2485.9,2.10651583]
[1728779228836,5.0,2486.0,2485.9,2.16795073]
[1728779229087,5.0,2486.0,2485.9,6.19063073]
[1728779234926,1.26584217,2486.2,2486.1,4.02236]
[1728779235209,5.0,2486.3,2486.2,4.0222]
[1728779235210,6.26584217,2486.3,2486.2,4.0222]
[1728779235379,1.26584217,2486.4,2486.3,4.02204]
[1728779235703,1.26584217,2486.4,2486.3,4.08292436]
[1728779235906,1.26584217,2486.5,2486.3,4.08292436]
[1728779237911,6.68778956,2486.6,2486.4,5.33098583]
[1728779237912,6.26584217,2486.6,2486.4,5.33098583]
[1728779238377,6.26584217,2486.6,2486.5,0.06059928]
[1728779239181,5.0,2486.6,2486.3,6.34978985]
[1728779239510,5.0,2486.6,2486.4,1.36985765]
[1728779239676,5.0,2486.6,2486.4,0.06074182]
[1728779240013,6.26584217,2486.6,2486.4,0.06074182]
[1728779240868,5.0,2486.6,2486.4,0.06074182]
[1728779252596,5.0,2486.6,2486.4,1.36985765]
[1728779254206,5.0,2486.6,2486.5,0.8325]
[1728779254414,5.0,2486.6,2486.5,2.14161583]
[1728779254733,5.0,2486.6,2486.5,2.20202745]
[1728779259308,5.0,2486.6,2486.5,1.36952745]
[1728779259502,5.0,2486.6,2486.5,0.06041162]
[1728779261408,5.0,2486.6,2486.5,1.36952745]
[1728779267753,6.26584217,2486.9,2486.6,0.7681]
[1728779268039,5.0,2486.9,2486.7,1.37644721]
[1728779271125,5.0,2486.9,2486.7,0.06733138]
[1728779271766,5.0,2486.9,2486.7,1.37644721]
[1728779271966,5.0,2486.9,2486.7,2.45744461]
[1728779274230,5.0,2486.9,2486.8,1.30911583]
[1728779274531,5.0,2486.9,2486.8,1.38585315]
[1728779280869,6.26584217,2487.2,2487.0,4.0208]
[1728779281074,1.26584217,2487.3,2487.1,1.78800583]
[1728779281377,1.26584217,2487.5,2487.2,5.32969583]
[1728779281538,6.26584217,2487.6,2487.3,1.38481879]
[1728779282136,6.26584217,2487.6,2487.4,1.30911583]
[1728779282382,5.0,2487.6,2487.5,0.07533672]
[1728779282841,5.0,2487.6,2487.4,1.30911583]
[1728779283041,5.0,2487.6,2487.5,0.07533672]
[1728779287846,5.0,2487.6,2487.4,1.30911583]
[1728779288341,5.0,2487.6,2487.4,1.38444116]
[1728779289432,5.0,2487.6,2487.4,2.00429028]
[1728779292120,5.0,2487.6,2487.5,1.30911583]
[1728779292318,5.0,2487.6,2487.4,1.92896495]
[1728779292513,5.0,2487.6,2487.4,2.00429028]
[1728779293661,5.0,2487.6,2487.5,1.30911583]
[1728779294256,5.0,2487.6,2487.5,2.13041583]
[1728779294453,5.0,2487.6,2487.5,2.40544232]
[1728779294772,5.70662956,2488.3,2487.5,2.40544232]
[1728779294773,5.0,2488.0,2487.6,1.3713]
[1728779294936,5.0,2488.0,2487.9,1.30911583]
[1728779299036,0.7888,2487.9,2487.5,0.27502649]
[1728779299270,4.01961,2487.8,2487.7,1.30911583]
[1728779301041,4.01961,2487.8,2487.6,1.30911583]
[1728779302266,4.01961,2487.8,2487.5,0.27502649]
[1728779302267,4.01961,2487.8,2487.7,1.30911583]
[1728779304331,4.01961,2487.8,2487.6,1.30911583]
[1728779306776,4.01961,2487.8,2487.4,1.44114912]
[1728779306987,4.01961,2487.8,2487.5,1.30911583]
[1728779309347,4.01961,2487.8,2487.6,1.30911583]
[1728779311056,0.7888,2487.9,2487.6,1.30911583]
[1728779311252,4.80827,2487.9,2487.6,1.30911583]
[1728779317855,4.80827,2487.9,2487.4,4.64008912]
[1728779317856,4.80827,2487.9,2487.5,1.30911583]
[1728779318651,0.7888,2487.9,2487.5,1.30911583]
[1728779318889,0.7888,2487.9,2487.5,2.30606833]
[1728779319382,0.7888,2487.9,2487.6,1.30911583]
[1728779321478,9.01929,2488.0,2487.6,1.30911583]
[1728779323084,5.0,2488.0,2487.8,1.30911583]
[1728779325258,6.26584217,2488.0,2487.8,1.30911583]
[1728779330404,10.28513217,2488.0,2487.8,1.30911583]
[1728779330763,10.28513217,2488.0,2487.7,0.8024]
[1728779330959,10.28513217,2488.0,2487.6,1.30911583]
[1728779331165,1.26584217,2487.9,2487.6,1.30911583]
[1728779332767,10.28513217,2488.0,2487.6,1.30911583]
[1728779333096,1.26584217,2487.9,2487.6,1.30911583]
[1728779333405,10.28513217,2488.0,2487.6,2.01732166]
[1728779333965,1.26584217,2487.9,2487.6,2.01732166]
[1728779334998,11.97292173,2488.0,2487.6,2.01732166]
[1728779335211,10.28513217,2488.0,2487.6,2.01732166]
[1728779335424,1.26584217,2487.9,2487.6,2.01732166]
[1728779335566,10.28513217,2488.0,2487.7,0.77902642]
[1728779335766,1.26584217,2487.9,2487.6,1.30911583]
[1728779336467,10.28513217,2488.0,2487.6,1.30911583]
[1728779336703,10.28513217,2488.0,2487.6,2.03746465]